fUSD/lending_fUSD_20240119
["ID","MTS","AMOUNT","RATE_DAILY","PERIOD"]
[312161325,1705674647767,-611.36,0.00021917,2]
[312161326,1705674647778,-717.76,0.00021917,2]
[312161327,1705674647789,-1447.39,0.00021917,2]
[312161328,1705674647799,-500.0,0.00021917,2]
[312161329,1705674647810,-500.0,0.00021917,2]
[312161330,1705674647820,-2948.08,0.00021917,2]
[312161331,1705674647831,-717.83,0.00021917,2]
[312161332,1705674647841,-500.0,0.00021917,2]
[312161333,1705674647852,-695.07,0.00021917,2]
[312161334,1705674647862,-754.58,0.00021917,2]
[312161335,1705674647874,-16488.48,0.00021917,2]
[312161336,1705674647884,-3021.97,0.00021917,2]
[312161337,1705674647894,-3427.8,0.00021917,2]
[312161338,1705674647905,-2131.71,0.00021917,2]
[312161339,1705674647915,-500.0,0.00021917,2]
[312161340,1705674647925,-500.0,0.00021917,2]
[312161341,1705674647935,-1009.99,0.00021917,2]
[312161342,1705674647945,-500.0,0.00021917,2]
[312161343,1705674647955,-956.0,0.00021917,2]
[312161344,1705674647964,-1506.86,0.00021917,2]
[312161345,1705674647975,-500.0,0.00021917,2]
[312161346,1705674647985,-500.0,0.00021917,2]
[312161347,1705674647995,-500.0,0.00021917,2]
[312161348,1705674648005,-1637.62,0.00021917,2]
[312161349,1705674648015,-1201.83,0.00021917,2]
[312161350,1705674648025,-637.98,0.00021917,2]
[312161351,1705674648034,-3998.36,0.00021917,2]
[312161352,1705674648044,-1599.66,0.00021917,2]
[312161353,1705674648053,-1400.83,0.00021917,2]
[312161354,1705674648063,-500.0,0.00021917,2]
[312161355,1705674648073,-500.0,0.00021917,2]
[312161356,1705674648083,-1422.3,0.00021917,2]
[312161357,1705674648093,-924.53,0.00021917,2]
[312161358,1705674648103,-17849.03,0.00021917,2]
[312161359,1705674648113,-500.0,0.00021917,2]
[312161360,1705674648122,-995.96,0.00021917,2]
[312161361,1705674648133,-3330.51,0.00021917,2]
[312161362,1705674648143,-905.92,0.00021917,2]
[312161363,1705674648153,-1401.15,0.00021917,2]
[312161364,1705674648162,-500.0,0.00021917,2]
[312161365,1705674648172,-500.0,0.00021917,2]
[312161366,1705674648181,-500.0,0.00021917,2]
[312161367,1705674648191,-1383.55,0.00021917,2]
[312161368,1705674648201,-1506.65,0.00021917,2]
[312161369,1705674648211,-1264.66,0.00021917,2]
[312161370,1705674648222,-6741.56,0.00021917,2]
[312161371,1705674648232,-500.0,0.00021917,2]
[312161372,1705674648241,-500.0,0.00021917,2]
[312161373,1705674648251,-334.23792441,0.00021917,2]
[312161374,1705674648260,-500.0,0.00021917,2]
[312161375,1705674648270,-500.0,0.00021917,2]
[312161376,1705674648280,-604.37,0.00021917,2]
[312161377,1705674648289,-1687.35,0.00021917,2]
[312161378,1705674648299,-516.56,0.00021917,2]
[312161379,1705674648308,-605.05,0.00021917,2]
[312161380,1705674648318,-1288.35,0.00021917,2]
[312161381,1705674648327,-500.0,0.00021917,2]
[312161382,1705674648336,-5391.31,0.00021917,2]
[312161383,1705674648346,-1647.86,0.00021917,2]
[312161384,1705674648355,-500.0,0.00021917,2]
[312161385,1705674648365,-500.0,0.00021917,2]
[312161386,1705674648374,-824.94,0.00021917,2]
[312161387,1705674648384,-500.0,0.00021917,2]
[312161388,1705674648394,-654.71,0.00021917,2]
[312161389,1705674648404,-500.0,0.00021917,2]
[312161390,1705674648414,-1662.1,0.00021917,2]
[312161391,1705674648424,-500.0,0.00021917,2]
[312161392,1705674648433,-1467.43,0.00021917,2]
[312161393,1705674648442,-541.73,0.00021917,2]
[312161394,1705674648451,-2497.65,0.00021917,2]
[312161395,1705674648460,-827.16,0.00021917,2]
[312161396,1705674648470,-617.14,0.00021917,5]
[312161397,1705674648480,-1554.52,0.00021917,2]
[312161398,1705674648489,-798.92,0.00021917,2]
[312161399,1705674648498,-500.0,0.00021917,2]
[312161400,1705674648508,-796.96,0.00021917,2]
[312161401,1705674648517,-1197.62,0.00021917,2]
[312161402,1705674648527,-538.86,0.00021917,2]
[312161403,1705674648536,-500.0,0.00021917,2]
[312161404,1705674648546,-1671.21,0.00021917,2]
[312161405,1705674648556,-1262.62,0.00021917,2]
[312161406,1705674648566,-500.0,0.00021917,2]
[312161407,1705674648575,-507.45687585,0.00021917,2]
[312161408,1705674648585,-500.0,0.00021917,2]
[312161409,1705674648595,-500.0,0.00021917,2]
[312161410,1705674648604,-539.33,0.00021917,2]
[312161411,1705674648614,-1641.24,0.00021917,2]
[312161412,1705674648626,-867.33,0.00021917,2]
[312161413,1705674648637,-500.0,0.00021917,2]
[312161414,1705674648646,-3333.86,0.00021917,2]
[312161415,1705674648656,-561.95,0.00021917,2]
[312161416,1705674648666,-663.45,0.00021917,2]
[312161417,1705674648676,-1040.42,0.00021917,2]
[312161418,1705674648687,-500.0,0.00021917,2]
[312161419,1705674648696,-653.23,0.00021917,2]
[312161420,1705674648707,-154.736859,0.00021918,2]
[312161421,1705674648718,-250.0,0.00021918,2]
[312161422,1705674648728,-478.41,0.00021933,2]
[312161423,1705674648737,-4223.5649433,0.00021949,2]
[312161424,1705674648747,-1551.36,0.00021966,2]
[312161425,1705674648757,-755.8,0.00021969,2]
[312161426,1705674648767,-150.0,0.00021977,2]
[312161427,1705674648778,-299.19132054,0.00021982,2]
[312161428,1705674648788,-2780.01074237,0.00022,2]
[312161429,1705674648798,-150.0,0.00022004,2]
[312161430,1705674648808,-1274.67845146,0.0002201,2]
[312161431,1705674648817,-4223.5649433,0.00022018,2]
[312161432,1705674648828,-173.84,0.00022026,2]
[312161433,1705674648838,-150.0,0.00022052,2]
[312161434,1705674648848,-533.6845424,0.00022079,2]
[312161435,1705674648858,-157.44,0.00022085,2]
[312161436,1705674648868,-4223.5649433,0.00022086,2]
[312161437,1705674648878,-175.74926154,0.00022091,2]
[312161438,1705674648887,-245.04121359,0.00022091,2]
[312161439,1705674648897,-18613.64350959,0.00022091,2]
[312161440,1705674648907,-1065.00045432,0.00022091,2]
[312161441,1705674648917,-755.8,0.00022096,2]
[312161442,1705674648928,-1500.0,0.000221,2]
[312161443,1705674648938,-156.57,0.00022124,2]
[312161444,1705674648948,-150.0,0.00022131,2]
[312161445,1705674648958,-4223.5649433,0.00022155,2]
[312161446,1705674648971,-151.0,0.00022155,7]
[312161447,1705674648981,-800.0,0.00022164,2]
[312161448,1705674648991,-301.16,0.00022164,2]
[312161449,1705674649001,-299.19132054,0.00022173,2]
[312161450,1705674649011,-226.69261519,0.00022181,2]
[312161451,1705674649021,-233.0510951,0.00022189,2]
[312161452,1705674649031,-362.92400272,0.00022189,2]
[312161453,1705674649040,-345.76613305,0.00022189,2]
[312161454,1705674649050,-307.42593914,0.00022189,2]
[312161455,1705674649060,-424.72948368,0.00022189,2]
[312161456,1705674649070,-155.45683396,0.00022189,2]
[312161457,1705674649080,-156.53185435,0.00022189,2]
[312161458,1705674649090,-384.58030079,0.00022189,2]
[312161459,1705674649100,-264.4930233,0.00022189,2]
[312161460,1705674649111,-264.77290641,0.00022189,2]
[312161461,1705674649122,-318.525335,0.00022189,2]
[312161462,1705674649133,-845.36208493,0.00022189,2]
[312161463,1705674649143,-2605.44947505,0.00022189,2]
[312161464,1705674649153,-400.0,0.00022189,2]
[312161465,1705674649163,-401.57543249,0.00022189,2]
[312161466,1705674649173,-404.58706104,0.00022189,2]
[312161467,1705674649183,-209.38155424,0.00022189,2]
[312161468,1705674649194,-18333.19865723,0.00022189,2]
[312161469,1705674649204,-337.09073552,0.00022189,2]
[312161470,1705674649215,-155.0,0.00022189,2]
[312161471,1705674649229,-155.91281074,0.00022189,2]
[312161472,1705674649239,-838.07830211,0.00022189,2]
[312161473,1705674649250,-246.33521087,0.00022189,2]
[312161474,1705674649261,-236.14012151,0.00022189,2]
[312161475,1705674649271,-566.59727256,0.00022189,2]
[312161476,1705674649282,-243.86443425,0.00022189,2]
[312161477,1705674649292,-161.08246614,0.00022189,2]
[312161478,1705674649302,-220.43732517,0.00022189,2]
[312161479,1705674649312,-523.73781275,0.00022189,2]
[312161480,1705674649323,-155.2592931,0.00022189,2]
[312161481,1705674649333,-2024.60916251,0.00022189,2]
[312161482,1705674649343,-203.33123177,0.00022189,2]
[312161483,1705674649353,-201.86355828,0.00022189,2]
[312161484,1705674649363,-181.62975253,0.00022189,2]
[312161485,1705674649373,-155.0,0.00022189,2]
[312161486,1705674649383,-240.68416027,0.0002219,2]
[312161487,1705674649393,-785.97811472,0.0002219,2]
[312161488,1705674649403,-324.93079599,0.0002219,2]
[312161489,1705674649413,-6190.00923641,0.0002219,2]
[312161490,1705674649422,-151.0,0.00022191,7]
[312161491,1705674649431,-151.0,0.00022191,7]
[312161492,1705674649440,-151.0,0.00022191,7]
[312161493,1705674649450,-220.97247,0.00022191,7]
[312161494,1705674649459,-151.0,0.00022191,7]
[312161495,1705674649472,-151.0,0.00022191,7]
[312161496,1705674649481,-500.0,0.00022191,2]
[312161497,1705674649492,-500.0,0.00022191,2]
[312161498,1705674649502,-600.0,0.00022191,2]
[312161499,1705674649511,-500.0,0.00022191,2]
[312161500,1705674649521,-707.27,0.00022191,2]
[312161501,1705674649531,-500.0,0.00022191,2]
[312161502,1705674649541,-500.0,0.00022191,2]
[312161503,1705674649551,-500.0,0.00022191,2]
[312161504,1705674649561,-902.43,0.00022191,2]
[312161505,1705674649571,-500.0,0.00022191,2]
[312161506,1705674649581,-500.0,0.00022191,2]
[312161507,1705674649590,-500.0,0.00022191,2]
[312161508,1705674649600,-512.07,0.00022191,2]
[312161509,1705674649610,-543.02,0.00022191,2]
[312161510,1705674649620,-785.51,0.00022191,2]
[312161511,1705674649631,-500.0,0.00022191,2]
[312161512,1705674649642,-500.0,0.00022191,2]
[312161513,1705674649652,-509.22676326,0.00022191,2]
[312161514,1705674649662,-500.0,0.00022191,2]
[312161515,1705674649674,-500.0,0.00022191,2]
[312161516,1705674649684,-500.0,0.00022191,2]
[312161517,1705674649695,-500.0,0.00022191,2]
[312161518,1705674649704,-624.72779221,0.00022191,2]
[312161519,1705674649714,-500.0,0.00022191,2]
[312161520,1705674649724,-500.0,0.00022191,2]
[312161521,1705674649734,-500.0,0.00022191,2]
[312161522,1705674649743,-506.01440032,0.00022191,2]
[312161523,1705674649753,-500.0,0.00022191,2]
[312161524,1705674649762,-521.03,0.00022191,2]
[312161525,1705674649772,-500.0,0.00022191,2]
[312161526,1705674649782,-500.0,0.00022191,2]
[312161527,1705674649792,-500.0,0.00022191,2]
[312161528,1705674649801,-500.0,0.00022191,2]
[312161529,1705674649811,-571.67,0.00022191,2]
[312161530,1705674649821,-500.0,0.00022191,2]
[312161531,1705674649831,-500.0,0.00022191,2]
[312161532,1705674649841,-500.0,0.00022191,2]
[312161533,1705674649850,-500.0,0.00022191,2]
[312161534,1705674649860,-500.0,0.00022191,2]
[312161535,1705674649869,-500.0,0.00022191,2]
[312161536,1705674649879,-500.0,0.00022191,2]
[312161537,1705674649889,-500.0,0.00022191,2]
[312161538,1705674649899,-528.35,0.00022191,2]
[312161539,1705674649910,-518.29189868,0.00022191,2]
[312161540,1705674649919,-500.0,0.00022191,2]
[312161541,1705674649929,-500.0,0.00022191,2]
[312161542,1705674649939,-1000.0,0.00022191,10]
[312161543,1705674649948,-500.0,0.00022191,2]
[312161544,1705674649958,-500.0,0.00022191,2]
[312161545,1705674649968,-500.0,0.00022191,2]
[312161546,1705674649978,-500.0,0.00022191,2]
[312161547,1705674649988,-500.0,0.00022191,2]
[312161548,1705674649998,-500.0,0.00022191,2]
[312161549,1705674650008,-500.0,0.00022191,2]
[312161550,1705674650018,-500.0,0.00022191,2]
[312161551,1705674650028,-500.0,0.00022191,2]
[312161552,1705674650038,-500.0,0.00022191,2]
[312161553,1705674650048,-500.0,0.00022191,2]
[312161554,1705674650058,-500.0,0.00022191,2]
[312161555,1705674650068,-803.94,0.00022191,2]
[312161556,1705674650078,-500.0,0.00022191,2]
[312161557,1705674650088,-500.0,0.00022191,2]
[312161558,1705674650098,-500.0,0.00022191,2]
[312161559,1705674650108,-500.0,0.00022191,2]
[312161560,1705674650119,-500.0,0.00022191,2]
[312161561,1705674650129,-852.68,0.00022191,2]
[312161562,1705674650139,-500.0,0.00022191,2]
[312161563,1705674650148,-500.0,0.00022191,2]
[312161564,1705674650158,-500.0,0.00022191,2]
[312161565,1705674650168,-500.0,0.00022191,2]
[312161566,1705674650178,-500.0,0.00022191,2]
[312161567,1705674650188,-500.0,0.00022191,2]
[312161568,1705674650198,-500.0,0.00022191,2]
[312161569,1705674650208,-500.0,0.00022191,2]
[312161570,1705674650220,-500.0,0.00022191,2]
[312161571,1705674650230,-500.0,0.00022191,2]
[312161572,1705674650240,-500.0,0.00022191,2]
[312161573,1705674650250,-500.0,0.00022191,2]
[312161574,1705674650259,-506.14,0.00022191,2]
[312161575,1705674650269,-1006.1,0.00022191,2]
[312161576,1705674650279,-500.0,0.00022191,2]
[312161577,1705674650289,-500.0,0.00022191,2]
[312161578,1705674650299,-500.0,0.00022191,2]
[312161579,1705674650308,-556.1,0.00022191,2]
[312161580,1705674650318,-500.0,0.00022191,2]
[312161581,1705674650328,-500.0,0.00022191,2]
[312161582,1705674650338,-500.0,0.00022191,2]
[312161583,1705674650348,-500.0,0.00022191,2]
[312161584,1705674650358,-500.0,0.00022191,2]
[312161585,1705674650367,-500.0,0.00022191,2]
[312161586,1705674650377,-500.0,0.00022191,2]
[312161587,1705674650387,-500.0,0.00022191,2]
[312161588,1705674650396,-405.00191657,0.00022191,2]
[312161589,1705674650407,-550.99,0.00022191,2]
[312161590,1705674650416,-500.0,0.00022191,2]
[312161591,1705674650427,-566.41,0.00022191,2]
[312161592,1705674650436,-500.0,0.00022191,2]
[312161593,1705674650447,-500.0,0.00022191,2]
[312161594,1705674650457,-500.0,0.00022191,2]
[312161595,1705674650466,-500.0,0.00022191,2]
[312161596,1705674650477,-500.0,0.00022191,2]
[312161597,1705674650488,-500.0,0.00022191,2]
[312161598,1705674650498,-756.54,0.00022191,2]
[312161599,1705674650508,-666.97,0.00022191,2]
[312161600,1705674650518,-540.14397406,0.00022191,2]
[312161601,1705674650528,-500.0,0.00022191,2]
[312161602,1705674650539,-864.28,0.00022191,2]
[312161603,1705674650549,-500.0,0.00022191,2]
[312161604,1705674650559,-500.0,0.00022191,2]
[312161605,1705674650569,-733.43,0.00022191,2]
[312161606,1705674650579,-500.0,0.00022191,2]
[312161607,1705674650589,-894.89,0.00022191,2]
[312161608,1705674650599,-640.01,0.00022191,2]
[312161609,1705674650610,-500.0,0.00022191,2]
[312161610,1705674650619,-500.0,0.00022191,2]
[312161611,1705674650630,-803.93,0.00022191,2]
[312161612,1705674650642,-1124.29,0.00022191,2]
[312161613,1705674650652,-500.0,0.00022191,2]
[312161614,1705674650662,-500.0,0.00022191,2]
[312161615,1705674650674,-500.0,0.00022191,2]
[312161616,1705674650684,-500.0,0.00022191,2]
[312161617,1705674650694,-500.0,0.00022191,2]
[312161618,1705674650704,-500.0,0.00022191,2]
[312161619,1705674650714,-500.0,0.00022191,2]
[312161620,1705674650727,-555.71,0.00022191,2]
[312161621,1705674650737,-500.0,0.00022191,2]
[312161622,1705674650748,-557.11,0.00022191,2]
[312161623,1705674650758,-518.9,0.00022191,2]
[312161624,1705674650768,-500.0,0.00022191,2]
[312161625,1705674650777,-1239.37,0.00022191,2]
[312161626,1705674650788,-500.0,0.00022191,2]
[312161627,1705674650798,-500.0,0.00022191,2]
[312161628,1705674650808,-500.0,0.00022191,2]
[312161629,1705674650818,-500.0,0.00022191,2]
[312161630,1705674650828,-500.0,0.00022191,2]
[312161631,1705674650838,-500.0,0.00022191,2]
[312161632,1705674650848,-500.0,0.00022191,2]
[312161633,1705674650858,-500.0,0.00022191,2]
[312161634,1705674650867,-500.0,0.00022191,2]
[312161635,1705674650877,-500.0,0.00022191,2]
[312161636,1705674650887,-500.0,0.00022191,2]
[312161637,1705674650897,-500.0,0.00022191,2]
[312161638,1705674650907,-500.0,0.00022191,2]
[312161639,1705674650917,-928.59,0.00022191,2]
[312161640,1705674650927,-1265.34,0.00022191,2]
[312161641,1705674650937,-500.0,0.00022191,2]
[312161642,1705674650946,-541.16,0.00022191,2]
[312161643,1705674650956,-500.0,0.00022191,2]
[312161644,1705674650966,-500.0,0.00022191,2]
[312161645,1705674650976,-608.78,0.00022191,2]
[312161646,1705674650986,-514.65,0.00022191,2]
[312161647,1705674650996,-552.53,0.00022191,2]
[312161648,1705674651007,-500.0,0.00022191,2]
[312161649,1705674651017,-500.0,0.00022191,2]
[312161650,1705674651027,-500.0,0.00022191,2]
[312161651,1705674651037,-847.01,0.00022191,2]
[312161652,1705674651046,-500.0,0.00022191,2]
[312161653,1705674651056,-500.0,0.00022191,2]
[312161654,1705674651067,-500.0,0.00022191,2]
[312161655,1705674651077,-500.0,0.00022191,2]
[312161656,1705674651087,-535.98,0.00022191,2]
[312161657,1705674651097,-500.0,0.00022191,2]
[312161658,1705674651106,-558.76,0.00022191,2]
[312161659,1705674651116,-500.0,0.00022191,2]
[312161660,1705674651126,-500.0,0.00022191,2]
[312161661,1705674651136,-500.0,0.00022191,2]
[312161662,1705674651146,-886.82,0.00022191,2]
[312161663,1705674651156,-500.0,0.00022191,2]
[312161664,1705674651166,-500.0,0.00022191,2]
[312161665,1705674651176,-869.62,0.00022191,2]
[312161666,1705674651186,-651.62,0.00022191,2]
[312161667,1705674651196,-500.0,0.00022191,2]
[312161668,1705674651206,-500.0,0.00022191,2]
[312161669,1705674651217,-500.0,0.00022191,2]
[312161670,1705674651228,-500.0,0.00022191,2]
[312161671,1705674651238,-766.07,0.00022191,2]
[312161672,1705674651248,-500.0,0.00022191,2]
[312161673,1705674651396,-500.0,0.00022191,2]
[312161674,1705674651407,-506.13,0.00022191,2]
[312161675,1705674651417,-588.85,0.00022191,2]
[312161676,1705674651427,-500.0,0.00022191,2]
[312161677,1705674651438,-500.0,0.00022191,2]
[312161678,1705674651448,-500.0,0.00022191,2]
[312161679,1705674651458,-572.98,0.00022191,2]
[312161680,1705674651468,-517.27,0.00022191,2]
[312161681,1705674651479,-715.18,0.00022191,2]
[312161682,1705674651490,-500.0,0.00022191,2]
[312161683,1705674651501,-630.94,0.00022191,2]
[312161684,1705674651514,-500.0,0.00022191,2]
[312161685,1705674651525,-500.0,0.00022191,2]
[312161686,1705674651536,-847.73,0.00022191,2]
[312161687,1705674651546,-1237.47,0.00022191,2]
[312161688,1705674651556,-717.44,0.00022191,2]
[312161689,1705674651567,-500.0,0.00022191,2]
[312161690,1705674651578,-500.0,0.00022191,2]
[312161691,1705674651589,-512.98,0.00022191,2]
[312161692,1705674651600,-500.0,0.00022191,2]
[312161693,1705674651611,-500.0,0.00022191,2]
[312161694,1705674651622,-500.0,0.00022191,2]
[312161695,1705674651632,-500.0,0.00022191,2]
[312161696,1705674651646,-500.0,0.00022191,2]
[312161697,1705674651657,-500.0,0.00022191,2]
[312161698,1705674651667,-737.83,0.00022191,2]
[312161699,1705674651678,-500.0,0.00022191,2]
[312161700,1705674651689,-500.0,0.00022191,2]
[312161701,1705674651700,-1372.6,0.00022191,2]
[312161702,1705674651710,-500.0,0.00022191,2]
[312161703,1705674651722,-500.0,0.00022191,2]
[312161704,1705674651732,-500.0,0.00022191,2]
[312161705,1705674651744,-500.0,0.00022191,2]
[312161706,1705674651754,-500.0,0.00022191,2]
[312161707,1705674651764,-560.24,0.00022191,2]
[312161708,1705674651774,-910.01,0.00022191,2]
[312161709,1705674651785,-622.13,0.00022191,2]
[312161710,1705674651795,-923.43,0.00022191,2]
[312161711,1705674651805,-500.0,0.00022191,2]
[312161712,1705674651816,-1039.82,0.00022191,2]
[312161713,1705674651826,-725.5,0.00022191,2]
[312161714,1705674651836,-550.84,0.00022191,2]
[312161715,1705674651845,-500.0,0.00022191,2]
[312161716,1705674651855,-500.0,0.00022191,2]
[312161717,1705674651865,-500.0,0.00022191,2]
[312161718,1705674651875,-774.84,0.00022191,2]
[312161719,1705674651886,-881.4,0.00022191,2]
[312161720,1705674651896,-500.0,0.00022191,2]
[312161721,1705674651907,-500.0,0.00022191,2]
[312161722,1705674651918,-500.0,0.00022191,2]
[312161723,1705674651928,-500.0,0.00022191,2]
[312161724,1705674651938,-586.22,0.00022191,2]
[312161725,1705674651948,-534.43,0.00022191,2]
[312161726,1705674651959,-636.62,0.00022191,2]
[312161727,1705674651969,-500.0,0.00022191,2]
[312161728,1705674651980,-713.47,0.00022191,2]
[312161729,1705674651990,-959.84,0.00022191,2]
[312161730,1705674652001,-500.0,0.00022191,2]
[312161731,1705674652011,-500.0,0.00022191,2]
[312161732,1705674652021,-578.16,0.00022191,2]
[312161733,1705674652032,-500.0,0.00022191,2]
[312161734,1705674652042,-500.0,0.00022191,2]
[312161735,1705674652052,-500.0,0.00022191,2]
[312161736,1705674652062,-500.0,0.00022191,2]
[312161737,1705674652072,-500.0,0.00022191,2]
[312161738,1705674652082,-999.09,0.00022191,2]
[312161739,1705674652092,-500.0,0.00022191,2]
[312161740,1705674652103,-500.0,0.00022191,2]
[312161741,1705674652113,-500.0,0.00022191,2]
[312161742,1705674652123,-682.87,0.00022191,2]
[312161743,1705674652133,-915.17,0.00022191,2]
[312161744,1705674652143,-565.49,0.00022191,2]
[312161745,1705674652153,-500.0,0.00022191,2]
[312161746,1705674652163,-592.67,0.00022191,2]
[312161747,1705674652173,-381.58198708,0.00022191,2]
[312161748,1705674652183,-500.0,0.00022191,2]
[312161749,1705674652193,-500.0,0.00022191,2]
[312161750,1705674652202,-500.0,0.00022191,2]
[312161751,1705674652213,-500.0,0.00022191,7]
[312161752,1705674652225,-500.0,0.00022191,2]
[312161753,1705674652235,-614.79225436,0.00022191,2]
[312161754,1705674652245,-500.0,0.00022191,2]
[312161755,1705674652255,-500.0,0.00022191,2]
[312161756,1705674652265,-500.0,0.00022191,2]
[312161757,1705674652275,-500.0,0.00022191,2]
[312161758,1705674652285,-661.07,0.00022191,2]
[312161759,1705674652295,-621.88,0.00022191,2]
[312161760,1705674652305,-500.0,0.00022191,2]
[312161761,1705674652315,-658.77,0.00022191,2]
[312161762,1705674652325,-814.59,0.00022191,2]
[312161763,1705674652335,-620.1,0.00022191,2]
[312161764,1705674652345,-500.0,0.00022191,2]
[312161765,1705674652355,-500.0,0.00022191,2]
[312161766,1705674652365,-500.0,0.00022191,2]
[312161767,1705674652376,-1051.71,0.00022191,2]
[312161768,1705674652386,-500.0,0.00022191,2]
[312161769,1705674652396,-546.81290643,0.00022191,2]
[312161770,1705674652408,-507.26,0.00022191,2]
[312161771,1705674652418,-1871.07,0.00022191,2]
[312161772,1705674652427,-1122.09,0.00022191,2]
[312161773,1705674652438,-500.0,0.00022191,2]
[312161774,1705674652448,-500.0,0.00022191,2]
[312161775,1705674652458,-1073.38,0.00022191,2]
[312161776,1705674652467,-500.0,0.00022191,2]
[312161777,1705674652480,-681.46,0.00022191,2]
[312161778,1705674652490,-609.04,0.00022191,2]
[312161779,1705674652500,-500.0,0.00022191,2]
[312161780,1705674652511,-500.0,0.00022191,2]
[312161781,1705674652521,-500.0,0.00022191,2]
[312161782,1705674652531,-500.0,0.00022191,2]
[312161783,1705674652542,-500.0,0.00022191,2]
[312161784,1705674652552,-684.05,0.00022191,2]
[312161785,1705674652561,-891.26,0.00022191,2]
[312161786,1705674652572,-536.25,0.00022191,2]
[312161787,1705674652582,-500.0,0.00022191,2]
[312161788,1705674652592,-500.0,0.00022191,2]
[312161789,1705674652602,-500.0,0.00022191,2]
[312161790,1705674652612,-500.0,0.00022191,2]
[312161791,1705674652624,-921.86,0.00022191,2]
[312161792,1705674652637,-341.29488181,0.00022191,2]
[312161793,1705674652648,-500.0,0.00022191,2]
[312161794,1705674652657,-548.46,0.00022191,2]
[312161795,1705674652667,-718.86,0.00022191,2]
[312161796,1705674652677,-514.23,0.00022191,2]
[312161797,1705674652687,-379.99749574,0.00022191,2]
[312161798,1705674652698,-759.76,0.00022191,2]
[312161799,1705674652708,-500.0,0.00022191,2]
[312161800,1705674652718,-581.17,0.00022191,2]
[312161801,1705674652731,-500.0,0.00022191,2]
[312161802,1705674652741,-579.17,0.00022191,2]
[312161803,1705674652751,-500.0,0.00022191,2]
[312161804,1705674652761,-267.09414012,0.00022191,2]
[312161805,1705674652770,-500.0,0.00022191,2]
[312161806,1705674652781,-500.0,0.00022191,2]
[312161807,1705674652791,-899.48,0.00022191,2]
[312161808,1705674652801,-500.0,0.00022191,2]
[312161809,1705674652811,-520.46,0.00022191,2]
[312161810,1705674652822,-564.45,0.00022191,2]
[312161811,1705674652832,-500.0,0.00022191,2]
[312161812,1705674652842,-1056.49,0.00022191,2]
[312161813,1705674652853,-539.4,0.00022191,2]
[312161814,1705674652865,-525.71,0.00022191,2]
[312161815,1705674652876,-500.0,0.00022191,2]
[312161816,1705674652886,-500.0,0.00022191,2]
[312161817,1705674652897,-1035.53,0.00022191,2]
[312161818,1705674652908,-950.46,0.00022191,2]
[312161819,1705674652919,-500.0,0.00022191,2]
[312161820,1705674652930,-1004.01,0.00022191,2]
[312161821,1705674652940,-841.77,0.00022191,2]
[312161822,1705674652950,-511.72,0.00022191,2]
[312161823,1705674652960,-773.82,0.00022191,2]
[312161824,1705674652970,-500.0,0.00022191,2]